[Event "*** SCC Grand Prix: Titled Tuesday Blitz"]
[Site "Chess.com"]
[Date "2020.10.06"]
[Round "1"]
[White "dominikaf"]
[Black "Swarnapuri"]
[Result "0-1"]
[WhiteElo "2290"]
[BlackElo "2607"]
[TimeControl "180+1"]
[EndTime "10:06:36 PDT"]
[Termination "Swarnapuri won on time"]

1. d4 {[%clk 0:02:54.8]} 1... Nc6 {[%clk 0:03:00.9]} 2. Bf4 {[%clk 0:02:51.2]}
2... Nf6 {[%clk 0:02:59.3]} 3. e3 {[%clk 0:02:51]} 3... g6 {[%clk 0:02:58.2]} 4.
Bd3 {[%clk 0:02:44.8]} 4... Bg7 {[%clk 0:02:58]} 5. h4 {[%clk 0:02:45.3]} 5...
d6 {[%clk 0:02:56.3]} 6. Nf3 {[%clk 0:02:39.5]} 6... Bg4 {[%clk 0:02:52.6]} 7.
Qd2 {[%clk 0:02:20.7]} 7... O-O {[%clk 0:02:44.9]} 8. Nh2 {[%clk 0:02:09.2]}
8... Bd7 {[%clk 0:02:44.2]} 9. c3 {[%clk 0:02:05.5]} 9... e5 {[%clk 0:02:42.7]}
10. Bg3 {[%clk 0:02:04]} 10... Re8 {[%clk 0:02:40.7]} 11. O-O {[%clk 0:01:59.6]}
11... Nh5 {[%clk 0:02:39.3]} 12. Qc2 {[%clk 0:01:44.5]} 12... Qe7 {[%clk
0:02:22.3]} 13. Nd2 {[%clk 0:01:39.7]} 13... exd4 {[%clk 0:02:19.8]} 14. exd4
{[%clk 0:01:38.9]} 14... Nxg3 {[%clk 0:02:20.2]} 15. fxg3 {[%clk 0:01:34.2]}
15... Qe3+ {[%clk 0:02:20.5]} 16. Kh1 {[%clk 0:01:33.2]} 16... Qxg3 {[%clk
0:02:21.1]} 17. Nhf3 {[%clk 0:01:28.8]} 17... Ne7 {[%clk 0:01:51.6]} 18. Ne4
{[%clk 0:01:27.3]} 18... Qg4 {[%clk 0:01:51.6]} 19. Nf2 {[%clk 0:01:25.6]} 19...
Qf4 {[%clk 0:01:49.7]} 20. Ne4 {[%clk 0:01:07.4]} 20... Nf5 {[%clk 0:01:46.2]}
21. Qf2 {[%clk 0:00:29.9]} 21... Rxe4 {[%clk 0:01:35.6]} 22. Bxe4 {[%clk
0:00:16.5]} 22... Ng3+ {[%clk 0:01:29.7]} 23. Kg1 {[%clk 0:00:16.5]} 23... Nxf1
{[%clk 0:01:30.6]} 24. Bxb7 {[%clk 0:00:13.7]} 24... Rb8 {[%clk 0:01:31]} 25.
Bd5 {[%clk 0:00:13.5]} 25... Ng3 {[%clk 0:01:24.9]} 26. Re1 {[%clk 0:00:12.6]}
26... c6 {[%clk 0:01:16.9]} 27. Bb3 {[%clk 0:00:11.1]} 27... d5 {[%clk
0:01:10.6]} 28. Ng5 {[%clk 0:00:03.3]} 28... Qxf2+ {[%clk 0:01:01]} 29. Kxf2
{[%clk 0:00:04.2]} 29... Nf5 {[%clk 0:01:01.9]} 30. g3 {[%clk 0:00:03.5]} 30...
h6 {[%clk 0:00:58.5]} 31. Nf3 {[%clk 0:00:03.4]} 31... Nd6 {[%clk 0:00:59]} 32.
Ne5 {[%clk 0:00:02.2]} 32... Be8 {[%clk 0:00:55.7]} 33. Ba4 {[%clk 0:00:01.3]}
33... Rxb2+ {[%clk 0:00:53.9]} 0-1

[Event "*** SCC Grand Prix: Titled Tuesday Blitz"]
[Site "Chess.com"]
[Date "2020.10.06"]
[Round "1"]
[White "Bulldog167"]
[Black "Smile2005"]
[Result "1-0"]
[WhiteElo "2789"]
[BlackElo "2403"]
[TimeControl "180+1"]
[EndTime "10:06:37 PDT"]
[Termination "Bulldog167 won by resignation"]

1. d4 {[%clk 0:03:00.9]} 1... Nf6 {[%clk 0:02:59.4]} 2. c4 {[%clk 0:02:59.8]}
2... g6 {[%clk 0:02:59.7]} 3. Nc3 {[%clk 0:03:00.2]} 3... Bg7 {[%clk 0:03:00.4]}
4. e4 {[%clk 0:03:00.8]} 4... O-O {[%clk 0:03:01.3]} 5. h3 {[%clk 0:03:01.3]}
5... d6 {[%clk 0:03:01.6]} 6. Be3 {[%clk 0:03:01.2]} 6... e5 {[%clk 0:03:00.7]}
7. d5 {[%clk 0:03:00.9]} 7... c6 {[%clk 0:03:01]} 8. g4 {[%clk 0:02:59.9]} 8...
cxd5 {[%clk 0:02:59]} 9. cxd5 {[%clk 0:03:00.8]} 9... a5 {[%clk 0:02:57.6]} 10.
Nge2 {[%clk 0:02:55.1]} 10... Na6 {[%clk 0:02:56.8]} 11. Ng3 {[%clk 0:02:54.8]}
11... a4 {[%clk 0:02:54.8]} 12. Qxa4 {[%clk 0:02:44]} 12... Bd7 {[%clk
0:02:52.7]} 13. Qd1 {[%clk 0:02:40.5]} 13... Qa5 {[%clk 0:02:52.4]} 14. Be2
{[%clk 0:02:37.6]} 14... Nc5 {[%clk 0:02:50.3]} 15. O-O {[%clk 0:02:35.3]} 15...
Rfc8 {[%clk 0:02:46.1]} 16. a3 {[%clk 0:02:28.6]} 16... Na4 {[%clk 0:02:43.9]}
17. Nxa4 {[%clk 0:02:26.3]} 17... Bxa4 {[%clk 0:02:43.4]} 18. b3 {[%clk
0:02:10.9]} 18... Bd7 {[%clk 0:02:32.9]} 19. a4 {[%clk 0:02:06.1]} 19... Qb4
{[%clk 0:02:15.4]} 20. Bc4 {[%clk 0:01:53.3]} 20... b5 {[%clk 0:02:12.4]} 21.
axb5 {[%clk 0:01:50.8]} 21... Rxa1 {[%clk 0:02:11.8]} 22. Qxa1 {[%clk
0:01:50.8]} 22... Bxb5 {[%clk 0:02:12.3]} 23. Bxb5 {[%clk 0:01:43.4]} 23... Qxb5
{[%clk 0:02:13.2]} 24. Qa4 {[%clk 0:01:42.7]} 24... Rb8 {[%clk 0:01:29.1]} 25.
Qxb5 {[%clk 0:01:38.5]} 25... Rxb5 {[%clk 0:01:30]} 26. Rc1 {[%clk 0:01:37.8]}
26... h5 {[%clk 0:01:27.6]} 27. gxh5 {[%clk 0:01:35]} 27... Nxh5 {[%clk
0:01:26]} 28. Nxh5 {[%clk 0:01:34.5]} 28... gxh5 {[%clk 0:01:26.9]} 29. Rc6
{[%clk 0:01:29.8]} 29... Bf8 {[%clk 0:01:24.7]} 30. Rb6 {[%clk 0:01:29.5]} 30...
Ra5 {[%clk 0:01:17.1]} 31. b4 {[%clk 0:01:26.7]} 31... Ra1+ {[%clk 0:01:09.6]}
32. Kg2 {[%clk 0:01:27]} 32... Rb1 {[%clk 0:01:10]} 33. Rb8 {[%clk 0:01:26.6]}
33... Kg7 {[%clk 0:01:09.7]} 34. b5 {[%clk 0:01:27]} 34... Be7 {[%clk
0:01:07.9]} 35. b6 {[%clk 0:01:25.8]} 35... f5 {[%clk 0:00:58]} 36. exf5 {[%clk
0:01:21.9]} 36... Kf6 {[%clk 0:00:58.2]} 37. Rb7 {[%clk 0:01:08.1]} 37... Bd8
{[%clk 0:00:54.9]} 38. Rd7 {[%clk 0:01:08.1]} 38... Bxb6 {[%clk 0:00:41.3]} 39.
Rxd6+ {[%clk 0:01:08.1]} 39... Kxf5 {[%clk 0:00:41.6]} 40. Rxb6 {[%clk
0:01:08.7]} 40... Rd1 {[%clk 0:00:41.7]} 41. d6 {[%clk 0:01:09]} 41... Ke6
{[%clk 0:00:40.9]} 42. Bc5 {[%clk 0:01:08.4]} 42... Rd5 {[%clk 0:00:40.8]} 43.
Bb4 {[%clk 0:01:08.3]} 43... Kf5 {[%clk 0:00:40.4]} 44. Rb7 {[%clk 0:01:07.4]}
44... e4 {[%clk 0:00:36.8]} 45. Rf7+ {[%clk 0:01:01.7]} 45... Ke6 {[%clk
0:00:36.3]} 46. Re7+ {[%clk 0:01:01.8]} 46... Kf6 {[%clk 0:00:36.1]} 47. Rxe4
{[%clk 0:01:01.2]} 1-0

[Event "*** SCC Grand Prix: Titled Tuesday Blitz"]
[Site "Chess.com"]
[Date "2020.10.06"]
[Round "1"]
[White "AlexeiShirov"]
[Black "FedaMaster"]
[Result "0-1"]
[WhiteElo "2835"]
[BlackElo "2452"]
[TimeControl "180+1"]
[EndTime "10:06:38 PDT"]
[Termination "FedaMaster won by resignation"]

1. e4 {[%clk 0:03:00.7]} 1... d5 {[%clk 0:02:58.7]} 2. exd5 {[%clk 0:02:59.8]}
2... Qxd5 {[%clk 0:02:57.9]} 3. Nc3 {[%clk 0:02:59.6]} 3... Qd6 {[%clk
0:02:58.3]} 4. Nf3 {[%clk 0:02:57.5]} 4... Nf6 {[%clk 0:02:58.7]} 5. d4 {[%clk
0:02:56.9]} 5... Bg4 {[%clk 0:02:58.7]} 6. h3 {[%clk 0:02:51.8]} 6... Bh5 {[%clk
0:02:57.9]} 7. g4 {[%clk 0:02:46.3]} 7... Bg6 {[%clk 0:02:57.8]} 8. Ne5 {[%clk
0:02:45.9]} 8... Nbd7 {[%clk 0:02:57.2]} 9. Bf4 {[%clk 0:02:41.8]} 9... Nxe5
{[%clk 0:02:57.2]} 10. dxe5 {[%clk 0:02:35.4]} 10... Qb4 {[%clk 0:02:57]} 11.
Bd2 {[%clk 0:02:14.3]} 11... Ne4 {[%clk 0:02:55.4]} 12. Bd3 {[%clk 0:02:11.2]}
12... Nxd2 {[%clk 0:02:52.9]} 13. Qxd2 {[%clk 0:02:10.1]} 13... O-O-O {[%clk
0:02:47.9]} 14. O-O-O {[%clk 0:02:09.3]} 14... Bxd3 {[%clk 0:02:45.4]} 15. cxd3
{[%clk 0:02:08.5]} 15... e6 {[%clk 0:02:45.1]} 16. Kb1 {[%clk 0:02:04.9]} 16...
Be7 {[%clk 0:02:20.5]} 17. Ne4 {[%clk 0:02:00.4]} 17... Qd4 {[%clk 0:02:18.1]}
18. Qc3 {[%clk 0:01:57.1]} 18... Rd5 {[%clk 0:01:56.5]} 19. f4 {[%clk
0:01:55.1]} 19... Rhd8 {[%clk 0:01:53.5]} 20. Qxd4 {[%clk 0:01:51.8]} 20... Rxd4
{[%clk 0:01:53.4]} 21. Kc2 {[%clk 0:01:51.8]} 21... f6 {[%clk 0:01:51.3]} 22.
exf6 {[%clk 0:01:49.2]} 22... gxf6 {[%clk 0:01:51]} 23. Rhf1 {[%clk 0:01:49]}
23... f5 {[%clk 0:01:50]} 24. Nc3 {[%clk 0:01:47.9]} 24... Bd6 {[%clk
0:01:32.4]} 25. Rde1 {[%clk 0:01:45.8]} 25... Rxf4 {[%clk 0:01:30.1]} 26. Rxf4
{[%clk 0:01:43.4]} 26... Bxf4 {[%clk 0:01:29.9]} 27. Rxe6 {[%clk 0:01:43.1]}
27... fxg4 {[%clk 0:01:30]} 28. hxg4 {[%clk 0:01:38]} 28... Rg8 {[%clk
0:01:30.3]} 29. Ne4 {[%clk 0:01:34.9]} 29... Kd8 {[%clk 0:01:23.4]} 30. Nf6
{[%clk 0:01:33.2]} 30... Rh8 {[%clk 0:01:21.9]} 31. d4 {[%clk 0:01:32]} 31...
Bg5 {[%clk 0:01:17.6]} 32. Ne4 {[%clk 0:01:31.7]} 32... Be7 {[%clk 0:01:17.5]}
33. g5 {[%clk 0:01:26.9]} 33... Rg8 {[%clk 0:01:17.5]} 34. Re5 {[%clk
0:01:24.3]} 34... Rg6 {[%clk 0:01:17.1]} 35. Kd3 {[%clk 0:01:23.1]} 35... h6
{[%clk 0:01:17.1]} 36. gxh6 {[%clk 0:01:22.7]} 36... Rxh6 {[%clk 0:01:17.8]} 37.
Rd5+ {[%clk 0:01:21.6]} 37... Bd6 {[%clk 0:01:16.8]} 38. Nxd6 {[%clk 0:01:19.9]}
38... cxd6 {[%clk 0:01:15.2]} 39. Rg5 {[%clk 0:01:18]} 39... Rh7 {[%clk
0:01:14]} 40. Kc4 {[%clk 0:01:16.7]} 40... Kd7 {[%clk 0:01:13.1]} 41. Kd5 {[%clk
0:01:14.8]} 41... Kc7 {[%clk 0:01:11.5]} 42. b4 {[%clk 0:01:13.8]} 42... a6
{[%clk 0:01:10.2]} 43. a4 {[%clk 0:01:13.2]} 43... Kd7 {[%clk 0:01:10.3]} 44. a5
{[%clk 0:01:09.9]} 44... Rf7 {[%clk 0:01:09.7]} 45. Rg6 {[%clk 0:01:09]} 45...
Rf5+ {[%clk 0:01:09.4]} 46. Kc4 {[%clk 0:01:09.1]} 46... Rf7 {[%clk 0:01:08.1]}
47. Rh6 {[%clk 0:01:07.6]} 47... Rf5 {[%clk 0:01:04.3]} 48. Rh7+ {[%clk
0:01:06.2]} 48... Kc6 {[%clk 0:01:04.3]} 49. Rh6 {[%clk 0:01:02.7]} 49... Rg5
{[%clk 0:01:04.6]} 50. Rf6 {[%clk 0:01:02.3]} 50... Rh5 {[%clk 0:01:04.5]} 51.
Rg6 {[%clk 0:01:02.2]} 51... Rf5 {[%clk 0:01:04.8]} 52. Rh6 {[%clk 0:01:02]}
52... Rg5 {[%clk 0:01:04.8]} 53. Rf6 {[%clk 0:01:02]} 53... Rh5 {[%clk
0:01:01.7]} 54. Rh6 {[%clk 0:00:59.7]} 54... Rxh6 {[%clk 0:00:54.9]} 0-1

[Event "*** SCC Grand Prix: Titled Tuesday Blitz"]
[Site "Chess.com"]
[Date "2020.10.06"]
[Round "1"]
[White "nickmatta"]
[Black "GoltsevDmitry2000"]
[Result "0-1"]
[WhiteElo "2372"]
[BlackElo "2712"]
[TimeControl "180+1"]
[EndTime "10:06:38 PDT"]
[Termination "GoltsevDmitry2000 won by resignation"]

1. d4 {[%clk 0:02:59.1]} 1... Nf6 {[%clk 0:02:55.8]} 2. c4 {[%clk 0:02:59.3]}
2... e6 {[%clk 0:02:54.5]} 3. Nc3 {[%clk 0:02:59.5]} 3... Bb4 {[%clk 0:02:54.2]}
4. Qc2 {[%clk 0:02:58.2]} 4... Qe7 {[%clk 0:02:53.2]} 5. Bd2 {[%clk 0:02:56.9]}
5... b6 {[%clk 0:02:53.3]} 6. e4 {[%clk 0:02:55.8]} 6... Bb7 {[%clk 0:02:51.9]}
7. Bd3 {[%clk 0:02:50.7]} 7... d6 {[%clk 0:02:50.9]} 8. Qa4+ {[%clk 0:02:44.9]}
8... Nc6 {[%clk 0:02:50.2]} 9. d5 {[%clk 0:02:45.3]} 9... exd5 {[%clk
0:02:50.3]} 10. cxd5 {[%clk 0:02:44.6]} 10... Bxc3 {[%clk 0:02:50.7]} 11. Bxc3
{[%clk 0:02:38.8]} 11... Nxd5 {[%clk 0:02:50.3]} 12. Bxg7 {[%clk 0:02:30.1]}
12... Rg8 {[%clk 0:02:45.9]} 13. O-O-O {[%clk 0:02:29.6]} 13... Nf4 {[%clk
0:02:38.2]} 14. Bb5 {[%clk 0:02:27.5]} 14... Qd7 {[%clk 0:02:28.2]} 15. Nf3
{[%clk 0:02:04.9]} 15... Rxg7 {[%clk 0:02:17.4]} 16. Nd4 {[%clk 0:02:03.7]}
16... a6 {[%clk 0:02:10.6]} 17. Bxc6 {[%clk 0:01:36.2]} 17... Bxc6 {[%clk
0:02:08.4]} 18. Nxc6 {[%clk 0:01:32.2]} 18... Rxg2 {[%clk 0:02:03.9]} 19. e5
{[%clk 0:01:31]} 19... Rg4 {[%clk 0:01:53.1]} 20. Qc2 {[%clk 0:01:15.6]} 20...
Kf8 {[%clk 0:01:50.1]} 21. exd6 {[%clk 0:01:10.5]} 21... cxd6 {[%clk 0:01:43.6]}
22. Kb1 {[%clk 0:00:47.8]} 22... Rc8 {[%clk 0:01:42.2]} 23. Rc1 {[%clk
0:00:28.1]} 23... Ng6 {[%clk 0:01:40.5]} 24. Rhd1 {[%clk 0:00:12.4]} 24... Rg5
{[%clk 0:01:24.6]} 25. Qd2 {[%clk 0:00:09.8]} 25... Rc5 {[%clk 0:01:20]} 26.
Rxc5 {[%clk 0:00:05.3]} 26... bxc5 {[%clk 0:01:20.9]} 27. Qh6+ {[%clk
0:00:05.2]} 27... Kg8 {[%clk 0:01:19.8]} 28. Na5 {[%clk 0:00:05.8]} 28... Rb8
{[%clk 0:01:15.5]} 29. Nc4 {[%clk 0:00:04.9]} 29... Qf5+ {[%clk 0:01:15.1]} 30.
Ka1 {[%clk 0:00:04.2]} 30... Qxf2 {[%clk 0:01:15.2]} 31. h4 {[%clk 0:00:01.8]}
31... d5 {[%clk 0:01:15]} 32. h5 {[%clk 0:00:01.2]} 32... dxc4 {[%clk 0:01:15]}
33. Qc1 {[%clk 0:00:01.6]} 33... Nf4 {[%clk 0:01:13.1]} 34. Rg1+ {[%clk
0:00:02.5]} 34... Kf8 {[%clk 0:01:12.4]} 35. h6 {[%clk 0:00:02.3]} 35... Nd3
{[%clk 0:01:10.3]} 36. Rg8+ {[%clk 0:00:02.2]} 36... Kxg8 {[%clk 0:01:08.2]} 37.
Qg5+ {[%clk 0:00:03.1]} 37... Kf8 {[%clk 0:01:08.5]} 38. Qg7+ {[%clk 0:00:03.7]}
38... Ke7 {[%clk 0:01:08.8]} 39. Qg5+ {[%clk 0:00:04.2]} 39... Qf6 {[%clk
0:01:08.9]} 40. Qe3+ {[%clk 0:00:04.2]} 40... Qe5 {[%clk 0:01:08.6]} 0-1

[Event "*** SCC Grand Prix: Titled Tuesday Blitz"]
[Site "Chess.com"]
[Date "2020.10.06"]
[Round "1"]
[White "Zufi1811"]
[Black "MITerryble"]
[Result "0-1"]
[WhiteElo "2468"]
[BlackElo "2973"]
[TimeControl "180+1"]
[EndTime "10:06:41 PDT"]
[Termination "MITerryble won by resignation"]

1. e4 {[%clk 0:02:15.6]} 1... e6 {[%clk 0:02:58.4]} 2. d4 {[%clk 0:02:14.6]}
2... d5 {[%clk 0:02:58.7]} 3. Nc3 {[%clk 0:02:15.1]} 3... Nf6 {[%clk 0:02:58.6]}
4. e5 {[%clk 0:02:14.6]} 4... Nfd7 {[%clk 0:02:58.5]} 5. Nce2 {[%clk 0:02:15.2]}
5... c5 {[%clk 0:02:58.5]} 6. c3 {[%clk 0:02:15.8]} 6... cxd4 {[%clk 0:02:58.9]}
7. cxd4 {[%clk 0:02:14.5]} 7... f6 {[%clk 0:02:59.1]} 8. Nf4 {[%clk 0:02:12.3]}
8... Bb4+ {[%clk 0:02:58.4]} 9. Bd2 {[%clk 0:02:11.6]} 9... Qb6 {[%clk
0:02:58.6]} 10. exf6 {[%clk 0:01:56.7]} 10... Nxf6 {[%clk 0:02:50.9]} 11. Nf3
{[%clk 0:01:56.8]} 11... O-O {[%clk 0:02:11.5]} 12. Nd3 {[%clk 0:01:43]} 12...
Bxd2+ {[%clk 0:02:09.7]} 13. Qxd2 {[%clk 0:01:43.9]} 13... Nc6 {[%clk
0:02:09.2]} 14. Nc5 {[%clk 0:01:09.2]} 14... Ne4 {[%clk 0:01:38.5]} 15. Nxe4
{[%clk 0:01:08.7]} 15... dxe4 {[%clk 0:01:39.4]} 16. Ng5 {[%clk 0:01:06.2]}
16... Nxd4 {[%clk 0:01:37.1]} 17. Nxe4 {[%clk 0:01:04.4]} 17... Rd8 {[%clk
0:01:11.2]} 18. Bd3 {[%clk 0:00:59.7]} 18... Nc6 {[%clk 0:00:52.9]} 19. Qc3
{[%clk 0:00:38.6]} 19... Nb4 {[%clk 0:00:47.3]} 20. Bc4 {[%clk 0:00:30.7]} 20...
Nd5 {[%clk 0:00:42.9]} 21. Bxd5 {[%clk 0:00:22]} 21... exd5 {[%clk 0:00:42.7]}
22. Nd2 {[%clk 0:00:13.6]} 22... Re8+ {[%clk 0:00:42.3]} 23. Kf1 {[%clk
0:00:13.8]} 23... Bf5 {[%clk 0:00:39.3]} 24. h3 {[%clk 0:00:08.5]} 24... Rac8
{[%clk 0:00:38.6]} 25. Qb3 {[%clk 0:00:09]} 25... Rc2 {[%clk 0:00:36.7]} 26.
Qxb6 {[%clk 0:00:06.3]} 26... axb6 {[%clk 0:00:36.5]} 27. Rd1 {[%clk 0:00:07.2]}
27... Bd3+ {[%clk 0:00:34.1]} 28. Kg1 {[%clk 0:00:06.8]} 28... Be2 {[%clk
0:00:34.6]} 0-1

[Event "*** SCC Grand Prix: Titled Tuesday Blitz"]
[Site "Chess.com"]
[Date "2020.10.06"]
[Round "1"]
[White "saraswathii"]
[Black "cassoulet"]
[Result "1/2-1/2"]
[WhiteElo "2373"]
[BlackElo "2692"]
[TimeControl "180+1"]
[EndTime "10:06:42 PDT"]
[Termination "Game drawn by repetition"]

1. e4 {[%clk 0:02:59.9]} 1... e6 {[%clk 0:02:59.8]} 2. d3 {[%clk 0:03:00]} 2...
d5 {[%clk 0:03:00.6]} 3. Nd2 {[%clk 0:03:00.1]} 3... Nf6 {[%clk 0:03:00.5]} 4.
Ngf3 {[%clk 0:02:59.9]} 4... Nc6 {[%clk 0:03:00.7]} 5. g3 {[%clk 0:03:00]} 5...
dxe4 {[%clk 0:03:00.6]} 6. dxe4 {[%clk 0:02:59.4]} 6... e5 {[%clk 0:03:01]} 7.
Bg2 {[%clk 0:02:59.1]} 7... Bc5 {[%clk 0:03:01.5]} 8. O-O {[%clk 0:02:59.4]}
8... O-O {[%clk 0:03:01.8]} 9. Qe2 {[%clk 0:02:59]} 9... Qe7 {[%clk 0:03:01.3]}
10. c3 {[%clk 0:02:59.1]} 10... a5 {[%clk 0:03:01.3]} 11. a4 {[%clk 0:02:57.8]}
11... b6 {[%clk 0:03:01.3]} 12. Nc4 {[%clk 0:02:47.7]} 12... Ba6 {[%clk
0:02:58.2]} 13. b3 {[%clk 0:02:47.6]} 13... h6 {[%clk 0:02:55.8]} 14. Nh4 {[%clk
0:02:45.3]} 14... Qe6 {[%clk 0:02:43.8]} 15. Nf5 {[%clk 0:02:36.2]} 15... Ne7
{[%clk 0:02:43.3]} 16. g4 {[%clk 0:02:30.5]} 16... Rad8 {[%clk 0:02:37.1]} 17.
h4 {[%clk 0:02:19.2]} 17... Ne8 {[%clk 0:02:22]} 18. Bh3 {[%clk 0:02:12]} 18...
Nxf5 {[%clk 0:02:19.9]} 19. exf5 {[%clk 0:02:03.2]} 19... Qd5 {[%clk 0:02:17.1]}
20. Re1 {[%clk 0:01:48.1]} 20... Nd6 {[%clk 0:02:13.4]} 21. Qxe5 {[%clk
0:01:43.4]} 21... Bxc4 {[%clk 0:02:12]} 22. bxc4 {[%clk 0:01:41.3]} 22... Qf3
{[%clk 0:02:12.2]} 23. Qh2 {[%clk 0:01:36]} 23... Rfe8 {[%clk 0:01:55.9]} 24.
Bf4 {[%clk 0:01:27.2]} 24... Ne4 {[%clk 0:01:37.8]} 25. Be3 {[%clk 0:01:25]}
25... Nxf2 {[%clk 0:01:33.4]} 26. Bxf2 {[%clk 0:01:17.2]} 26... Bxf2+ {[%clk
0:01:26.3]} 27. Qxf2 {[%clk 0:01:18.1]} 27... Qxh3 {[%clk 0:01:26.4]} 28. g5
{[%clk 0:01:15]} 28... Qg4+ {[%clk 0:01:21.4]} 29. Qg2 {[%clk 0:01:07.8]} 29...
Qxh4 {[%clk 0:01:19.4]} 30. Rxe8+ {[%clk 0:00:54.5]} 30... Rxe8 {[%clk
0:01:20.3]} 31. gxh6 {[%clk 0:00:50.8]} 31... Qxh6 {[%clk 0:01:18.7]} 32. Rf1
{[%clk 0:00:51.2]} 32... Re4 {[%clk 0:01:15.4]} 33. Qxe4 {[%clk 0:00:50.3]}
33... Qg5+ {[%clk 0:01:14.9]} 34. Qg2 {[%clk 0:00:41.9]} 34... Qe3+ {[%clk
0:01:14.6]} 35. Rf2 {[%clk 0:00:42]} 35... Qc1+ {[%clk 0:01:14.9]} 36. Qf1
{[%clk 0:00:40.2]} 36... Qg5+ {[%clk 0:01:14.9]} 37. Rg2 {[%clk 0:00:40.2]}
37... Qe3+ {[%clk 0:01:15.1]} 38. Rf2 {[%clk 0:00:29.2]} 38... Qg5+ {[%clk
0:01:15]} 39. Kh1 {[%clk 0:00:26.7]} 39... Qh4+ {[%clk 0:01:12]} 40. Rh2 {[%clk
0:00:26.5]} 40... Qe4+ {[%clk 0:01:12.4]} 41. Qg2 {[%clk 0:00:23.4]} 41... Qe1+
{[%clk 0:01:09.8]} 42. Qg1 {[%clk 0:00:23.6]} 42... Qe4+ {[%clk 0:01:10.3]} 43.
Rg2 {[%clk 0:00:23.9]} 43... Qh4+ {[%clk 0:01:10.4]} 44. Qh2 {[%clk 0:00:22.3]}
44... Qe1+ {[%clk 0:01:10.4]} 45. Rg1 {[%clk 0:00:22.7]} 45... Qe4+ {[%clk
0:01:10.8]} 46. Qg2 {[%clk 0:00:19.9]} 46... Qh4+ {[%clk 0:01:10.9]} 47. Qh2
{[%clk 0:00:20.3]} 47... Qe4+ {[%clk 0:01:11.8]} 48. Rg2 {[%clk 0:00:20.7]}
48... Qe1+ {[%clk 0:01:12.1]} 49. Qg1 {[%clk 0:00:21.1]} 49... Qh4+ {[%clk
0:01:12.5]} 50. Rh2 {[%clk 0:00:20.9]} 50... Qe4+ {[%clk 0:01:12.8]} 51. Rg2
{[%clk 0:00:21.3]} 51... Qh4+ {[%clk 0:01:13]} 1/2-1/2

[Event "*** SCC Grand Prix: Titled Tuesday Blitz"]
[Site "Chess.com"]
[Date "2020.10.06"]
[Round "1"]
[White "nocnypako"]
[Black "ashookk"]
[Result "1-0"]
[WhiteElo "2546"]
[BlackElo "2213"]
[TimeControl "180+1"]
[EndTime "10:06:47 PDT"]
[Termination "nocnypako won by resignation"]

1. d4 {[%clk 0:02:55.2]} 1... Nf6 {[%clk 0:02:59.3]} 2. c4 {[%clk 0:02:55.4]}
2... c5 {[%clk 0:02:59.5]} 3. d5 {[%clk 0:02:54.8]} 3... b5 {[%clk 0:03:00.1]}
4. Nf3 {[%clk 0:02:54.9]} 4... g6 {[%clk 0:02:59.4]} 5. cxb5 {[%clk 0:02:55.1]}
5... a6 {[%clk 0:02:59.4]} 6. b6 {[%clk 0:02:55.5]} 6... Bg7 {[%clk 0:02:56.7]}
7. Nc3 {[%clk 0:02:55.8]} 7... d6 {[%clk 0:02:56]} 8. e4 {[%clk 0:02:53.5]} 8...
O-O {[%clk 0:02:56.4]} 9. a4 {[%clk 0:02:41.3]} 9... a5 {[%clk 0:02:56.4]} 10.
Bb5 {[%clk 0:02:40.3]} 10... Ba6 {[%clk 0:02:48.8]} 11. O-O {[%clk 0:02:37.3]}
11... Nfd7 {[%clk 0:02:47.1]} 12. Bg5 {[%clk 0:02:26.5]} 12... h6 {[%clk
0:02:39]} 13. Bh4 {[%clk 0:02:25.2]} 13... Nxb6 {[%clk 0:02:38.6]} 14. Re1
{[%clk 0:02:24.4]} 14... N8d7 {[%clk 0:02:36.2]} 15. Qc2 {[%clk 0:02:11.6]}
15... Nc4 {[%clk 0:02:29]} 16. b3 {[%clk 0:02:02.1]} 16... Bxb5 {[%clk
0:02:03.9]} 17. axb5 {[%clk 0:02:03]} 17... Nce5 {[%clk 0:01:58.4]} 18. Nd2
{[%clk 0:02:02.7]} 18... g5 {[%clk 0:01:57.2]} 19. Bg3 {[%clk 0:02:02.3]} 19...
Qb8 {[%clk 0:01:19.7]} 20. Ra2 {[%clk 0:01:54.3]} 20... c4 {[%clk 0:01:15.4]}
21. Nxc4 {[%clk 0:01:51.7]} 21... Nxc4 {[%clk 0:01:15.7]} 22. bxc4 {[%clk
0:01:52.5]} 22... Rc8 {[%clk 0:01:15.7]} 23. Na4 {[%clk 0:01:38.9]} 23... Nb6
{[%clk 0:01:00.6]} 24. c5 {[%clk 0:01:30.6]} 24... Nxa4 {[%clk 0:00:57.2]} 25.
Rxa4 {[%clk 0:01:30.3]} 25... Rxc5 {[%clk 0:00:57.1]} 26. Qxc5 {[%clk
0:01:29.3]} 26... dxc5 {[%clk 0:00:56.3]} 27. Bxb8 {[%clk 0:01:29.3]} 27... Rxb8
{[%clk 0:00:51.8]} 28. Rxa5 {[%clk 0:01:22.7]} 28... Bc3 {[%clk 0:00:50.7]} 29.
Rea1 {[%clk 0:01:19.3]} 29... Bxa1 {[%clk 0:00:50.5]} 30. Rxa1 {[%clk
0:01:20.1]} 30... Rxb5 {[%clk 0:00:50.7]} 31. Kf1 {[%clk 0:01:20.7]} 31... Rb4
{[%clk 0:00:36.1]} 32. f3 {[%clk 0:01:19.5]} 32... Rb2 {[%clk 0:00:27.5]} 33.
Rc1 {[%clk 0:01:18.9]} 33... Kg7 {[%clk 0:00:25.6]} 34. Rxc5 {[%clk 0:01:17.7]}
34... Kf6 {[%clk 0:00:26]} 35. Rc6+ {[%clk 0:01:14.6]} 35... Kg7 {[%clk
0:00:24.9]} 36. Kg1 {[%clk 0:01:02.9]} 36... h5 {[%clk 0:00:23.7]} 37. Rc3
{[%clk 0:00:58.3]} 37... Rd2 {[%clk 0:00:22]} 38. Rc6 {[%clk 0:00:52.3]} 38...
Rb2 {[%clk 0:00:20.3]} 39. g3 {[%clk 0:00:51.8]} 39... Rd2 {[%clk 0:00:19.7]}
40. Rb6 {[%clk 0:00:50.7]} 40... Rc2 {[%clk 0:00:19.4]} 41. d6 {[%clk
0:00:50.6]} 41... exd6 {[%clk 0:00:19.1]} 42. Rxd6 {[%clk 0:00:51.5]} 42... Rb2
{[%clk 0:00:18]} 43. Rd5 {[%clk 0:00:50.5]} 43... Kg6 {[%clk 0:00:18.2]} 44.
Rd6+ {[%clk 0:00:50.2]} 44... Kg7 {[%clk 0:00:18.7]} 45. h4 {[%clk 0:00:48.7]}
45... gxh4 {[%clk 0:00:17.7]} 46. gxh4 {[%clk 0:00:49.6]} 46... Rd2 {[%clk
0:00:17]} 47. Rxd2 {[%clk 0:00:48.9]} 1-0